Cogmind - Beta 14 --- EXPLORER MODE // 2024.09.29 @ 17:34:45 Player: RustedShell Result: Self-destructed Performance ------------- Evolutions (1) 500 Regions Visited (2) 400 Robots Destroyed (22) 110 Value Destroyed (490) 490 Prototype IDs (0) 0 Alien Tech Used (0) 0 Bonus (0) 0 TOTAL SCORE: 1500 Bonus ------- None Cogmind --------- Core Integrity 388/400 Matter 290/300 Energy 290/290 System Corruption 0% Temperature Danger (444) Movement Rolling (86) Location -9/Materials Parts ------- > --- POWER (2) -------- Light Ion Engine Improved Ion Engine > --- PROPULSION (3) --- Wheel Wheel Compact Wheel > --- UTILITY (3) ------ Large Storage Unit Sensor Array Signal Interpreter > --- WEAPON (2) ------- Beam Cannon > --- INVENTORY (15) --- Ion Engine Improved Ion Engine Aluminum Leg Aluminum Leg Heat Sink Medium Storage Unit ECM Suite Assault Rifle Assault Rifle Peak State ------------ > --- POWER ------------ Ion Engine Improved Ion Engine > --- PROPULSION ------- Wheel Wheel Compact Wheel > --- UTILITY ---------- Large Storage Unit Sensor Array Signal Interpreter > --- WEAPON ----------- Beam Cannon Beam Cannon > --- INVENTORY -------- Aluminum Leg Aluminum Leg Heat Sink Medium Storage Unit ECM Suite Assault Rifle Assault Rifle [Rating: 11] Favorites ----------- Power Ion Engine Engine Ion Engine Propulsion Wheel Leg Aluminum Leg Wheel Wheel Utility Sensor Array Device Sensor Array Storage Medium Storage Unit Processor Signal Interpreter Weapon Assault Rifle Energy Cannon Beam Cannon Ballistic Gun Assault Rifle Build | -11 -10 -9 ------- Run | Yrd Mat Mat Slots Evolved 3 | . 1 2 Power 1 | . . 1 Propulsion 1 | . . 1 Utility 1 | . 1 . Weapon . | . . . Parts Attached 20 | 8 9 3 Power 4 | 1 1 2 Engine 4 | 1 1 2 Core . | . . . Reactor . | . . . Propulsion 7 | 2 4 1 Treads . | . . . Leg 2 | 2 . . Wheel 5 | . 4 1 Hover . | . . . Flight . | . . . Utility 5 | 3 2 . Device 1 | 1 . . Storage 3 | 1 2 . Processor 1 | 1 . . Hackware . | . . . Protection . | . . . Artifact . | . . . Weapon 4 | 2 2 . Energy Gun . | . . . Energy Cannon 2 | . 2 . Ballistic Gun 2 | 2 . . Ballistic Cannon . | . . . Launcher . | . . . Special Weapon . | . . . Impact Weapon . | . . . Slashing Weapon . | . . . Piercing Weapon . | . . . Special Melee Weapon . | . . . Unidentified Prototypes . | . . . Parts Lost . | . . . Power . | . . . Propulsion . | . . . Utility . | . . . Weapon . | . . . Highest Loss Streak . | . . . To Critical Strikes . | . . . Average Slot Usage (%) 99 | . 100 95 Engine 13 | . 12 18 Wheel 25 | . 25 28 Device 11 | . 12 10 Storage 11 | . 12 10 Processor 11 | . 12 10 Energy Cannon 14 | . 14 17 Ballistic Gun 9 | . 10 . Peak Build Rating 11 | 7 8 11 Average Rating 7 | 6 8 10 On Entrance 5 | . 7 8 Naked Turns . | . . . Heaviest Build 39 | 20 32 39 Greatest Support 36 | 20 26 36 Greatest Overweight (x) 5 | 5 1 1 Average Overweight (x) . | . . . Largest Inventory Capacity 15 | 10 15 15 Average Capacity 9 | 5 10 15 Most Carried 9 | 5 9 9 Average Carried 5 | 3 5 7 Final Capacity 15 | 5 15 15 Final Carried 9 | 5 8 9 Class Distribution -------------------- 100% | Hacker-Mutant Dominant Class ---------------- Hacker-Mutant | -10/Materials Hacker-Mutant | -9/Materials Resources | -11 -10 -9 ----------- Run | Yrd Mat Mat Matter Collected 690 | 240 356 94 Remotely . | . . . Salvage Created 840 | 182 460 198 Parts 48 | 11 23 14 Haulers Intercepted . | . . . Recyclers Shooed 5 | . 5 . Parts Field Recycled . | . . . Retrieved Matter . | . . . Parts Self-Destructed . | . . . Prevented . | . . . Kills | -11 -10 -9 ------- Run | Yrd Mat Mat Combat Hostiles Destroyed 11 | . 6 5 Guns 4 | . 4 . Cannons 7 | . 2 5 Classes Destroyed 7 | 2 2 3 Tunneler 4 | 4 . . Recycler 3 | 1 2 . Watcher 4 | . 3 1 Swarmer 2 | . . 2 Grunt 7 | . 6 1 Brawler 1 | . . 1 Duelist 1 | . . 1 Best Kill Streak 4 | 3 4 4 Combat Bots Only 3 | . 2 3 Max Kills in Single Turn 1 | 1 1 1 Gunslinging . | . . . Exploded . | . . . Melee . | . . . Uniques/NPCs Destroyed . | . . . Combat | -11 -10 -9 -------- Run | Yrd Mat Mat Hostile Shots Fired 78 | . 55 23 Missed 20 | . 15 5 Damage Taken 464 | . 302 162 Core 71 | . 59 12 Absorbed by Shields . | . . . Ignored by Resistances 293 | . 192 101 Core Remaining (%) 88 | 100 76 . Volleys Fired 76 | 12 46 18 Largest 2 | 2 2 2 Hottest 120 | 40 120 120 Shots Fired 142 | 24 92 26 Gun 100 | 24 76 . Cannon 42 | . 16 26 Launcher . | . . . Special . | . . . Kinetic 100 | 24 76 . Thermal 42 | . 16 26 Explosive . | . . . Electromagnetic . | . . . Robot Hit Streak 24 | 6 24 13 Robot Miss Streak 2 | 1 2 2 Penetration Max . | . . . Secondary Targets 4 | . 4 . Max Gunslinging Chain 1 | . 1 . Shots Hit Robots 113 | 16 78 19 Core Hits 36 | 6 22 8 Critical Kills . | . . . Critical Parts Destroyed . | . . . Critical Strikes . | . . . Melee Attacks . | . . . Impact . | . . . Slashing . | . . . Piercing . | . . . Sneak Attacks . | . . . Combat Hostiles . | . . . Follow-up Attacks . | . . . Damage Inflicted 1550 | 196 1021 333 Guns 1026 | 196 830 . Cannons 524 | . 191 333 Explosions . | . . . Melee . | . . . Ramming . | . . . Kinetic 1026 | 196 830 . Thermal 524 | . 191 333 Explosive . | . . . Electromagnetic . | . . . Impact . | . . . Slashing . | . . . Piercing . | . . . Highest Corruption . | . . . Average Corruption . | . . . Corruption Purged . | . . . Corruption Blocked . | . . . Overload Shots . | . . . Overflow Damage . | . . . Projectiles . | . . . Explosions . | . . . Melee . | . . . Knockbacks . | . . . Impact . | . . . Kinetic . | . . . Secondary . | . . . Self-Inflicted Damage . | . . . Shots . | . . . Rammed . | . . . Targets Rammed . | . . . Kicked . | . . . Crushed . | . . . Highest Temperature 508 | . 339 508 Average Temperature 213 | . 95 338 Received Heat Transfer 369 | . 291 78 Effects 17 | . . 17 Shutdowns 5 | . . 5 Interference 5 | . . 5 Damage (minor) 2 | . . 2 Damage (major) 5 | . . 5 Siege Activations . | . . . Robots Corrupted . | . . . Combat Hostiles . | . . . Parts Fried . | . . . Impact Corruptions . | . . . Robots Melted . | . . . Combat Hostiles . | . . . Parts Melted 2 | . 1 1 Heat Transferred 1110 | . 407 703 Parts Sabotaged . | . . . Parts Stolen . | . . . Parts Stripped . | . . . Power Chain Reactions . | . . . Alert | -11 -10 -9 ------- Run | Yrd Mat Mat Peak Influence 223 | 25 223 153 Initial 12 | . 12 . Average 87 | 10 121 63 Maximum Alert Level 1 | . 1 . Low Security (%) 86 | 100 77 100 Level 1 13 | . 22 . Level 2 . | . . . Level 3 . | . . . Level 4 . | . . . Level 5 . | . . . High Security . | . . . Max Security . | . . . Squads Dispatched 1 | . . 1 Investigation . | . . . Extermination . | . . . Reinforcement 1 | . . 1 Assault . | . . . Garrison . | . . . Intercept . | . . . Searches Triggered . | . . . Construction Impeded . | . . . Haulers Reinforced . | . . . Active Scanning Responses . | . . . Cargo Convoy Interrupts . | . . . Stealth | -11 -10 -9 --------- Run | Yrd Mat Mat Distress Signals 2 | . . 2 Communications Jammed . | . . . Distress Signals . | . . . Times Spotted 19 | . 11 8 Peak Tracking Total 5 | . 5 5 Tactical Retreats . | . . . Traps | -11 -10 -9 ------- Run | Yrd Mat Mat Traps Triggered . | . . . Indirectly . | . . . Trap Hack Attempts . | . . . Triggered . | . . . Disarmed . | . . . Reprogrammed . | . . . Reused . | . . . Traps Extracted . | . . . Installed . | . . . Triggered . | . . . Machines | -11 -10 -9 ---------- Run | Yrd Mat Mat Machines Disabled . | . . . Max in Single Turn . | . . . Machines Repaired . | . . . Machines Dismantled . | . . . Machines Sabotaged . | . . . Overloaded Fab Kills . | . . . Hacking | -11 -10 -9 --------- Run | Yrd Mat Mat Machines Accessed 4 | . 4 . Terminals 3 | . 3 . Fabricators . | . . . Repair Stations . | . . . Recycling Units 1 | . 1 . Scanalyzers . | . . . Garrison Access . | . . . Total Hacks 9 | . 9 . Successful 5 | . 5 . Failed 4 | . 4 . Catastrophic . | . . . Database Lockouts . | . . . Manual 1 | . 1 . Terminals 8 | . 8 . Fabricators . | . . . Repair Stations . | . . . Recycling Units 1 | . 1 . Scanalyzers . | . . . Garrison Access . | . . . Terminal Hacks 4 | . 4 . Locate Traps 2 | . 2 . Hauler Manifests 1 | . 1 . Zone Layout 1 | . 1 . Fabricator Hacks . | . . . Repair Station Hacks . | . . . Recycling Unit Hacks 1 | . 1 . Report Inventory 1 | . 1 . Scanalyzer . | . . . Garrison Access Hacks . | . . . Unauthorized Hacks . | . . . Terminals . | . . . Fabricators . | . . . Repair Stations . | . . . Recycling Units . | . . . Scanalyzers . | . . . Garrison Access . | . . . Data Cores Recovered . | . . . Used . | . . . Hacking Detections 2 | . 2 . Full Trace Events . | . . . Feedback Events . | . . . Feedback Blocked . | . . . Robot Schematics Acquired . | . . . Robots Built . | . . . Authchips . | . . . Time . | . . . Total Robot Build Rating . | . . . Part Schematics Acquired . | . . . Parts Built . | . . . Authchips . | . . . Time . | . . . Total Part Build Rating . | . . . Parts Repaired . | . . . Time . | . . . Parts Recycled . | . . . Recycled Matter . | . . . Retrieved Matter . | . . . Retrieved Components . | . . . Parts Scanalyzed . | . . . Part Schematics Acquired . | . . . Parts Damaged . | . . . Bothacking | -11 -10 -9 ------------ Run | Yrd Mat Mat Used RIF Installer . | . . . Robots Hacked . | . . . Non-combat . | . . . Combat . | . . . Robot Hacks Applied . | . . . Relay Couplers Released . | . . . Fabnet Peak Effective % . | . . . Robots Rewired . | . . . Allies Hacked . | . . . Hacks Repelled . | . . . Allies | -11 -10 -9 -------- Run | Yrd Mat Mat Total Allies . | . . . Largest Group . | . . . Highest-Rated Group . | . . . Highest-Rated Ally . | . . . Total Orders . | . . . Ally Attacks . | . . . Total Damage . | . . . Kills . | . . . Allies Corrupted . | . . . Allies Melted . | . . . Intel | -11 -10 -9 ------- Run | Yrd Mat Mat Robot Analysis Total . | . . . Derelict Logs Recovered . | . . . Drone Launches . | . . . Drone Recoveries . | . . . Exploration | -11 -10 -9 ------------- Run | Yrd Mat Mat Turns Passed 703 | 165 444 94 Spaces Moved 432 | 87 309 36 Core 5 | 5 . . Treads . | . . . Legs 82 | 82 . . Wheels 345 | . 309 36 Hover . | . . . Flight . | . . . Fastest Speed 50 | 50 80 86 Average Speed 97 | 124 89 98 Slowest Speed 300 | 300 105 105 Overloaded Moves . | . . . Propulsion Burnouts . | . . . Robots Hopped . | . . . Cave-ins Triggered . | . . . Exploration Rate (%) 29 | 5 77 6 Regions Visited 2 Branch Regions . Pre-discovered Areas . | . . . Known Exits Taken 2 | 1 1 . Unknown Exits Taken . | . . . Scrap Searched . | . . . Spaces Dug . | . . . Terrain Destroyed . | . . . Melee . | . . . Projectile . | . . . AOE . | . . . Terrain Rammed . | . . . Walls Destroyed . | . . . Machines Disabled . | . . . Actions | -11 -10 -9 --------- Run | Yrd Mat Mat Total 570 | 122 381 67 Wait 21 | . 12 9 Move 430 | 86 308 36 Hop . | . . . Pick Up 15 | 10 4 1 Fast Attach 8 | 7 . 1 Attach 3 | 1 1 1 Detach 1 | 1 . . Swap 9 | . 8 1 Drop 7 | 5 2 . Fire 76 | 12 46 18 Melee . | . . . Ram . | . . . Kick . | . . . Crush . | . . . Escape Stasis . | . . . Rewire . | . . . Trap . | . . . Miscellaneous . | . . . Route ------- -11/Scrapyard -10/Materials (discovered 2 exits: *Mat x2) -9/Materials History --------- Turn | Location | Event 31 | -11/Scrapyard | Identified exit to Materials 31 | -11/Scrapyard | Discovered exit to Materials (range 14) 166 | -11/Scrapyard | Entered Materials 166 | -10/Materials | Evolved 1 slot: Utility x1 314 | -10/Materials | Build established: Hacker-Mutant 404 | -10/Materials | Identified exit to Materials 404 | -10/Materials | Discovered exit to Materials (range 11) 591 | -10/Materials | Discovered exit to Materials (range 8) 610 | -10/Materials | Entered another Materials area 610 | -9/Materials | Evolved 2 slots: Power x1, Propulsion x1 704 | -9/Materials | Self-destructed Last Messages --------------- 00686_ Katana melted. 00686_ L-31 Rogue destroyed. 00688_ Power failure, Imp. Ion Engine shutdown. 00689_ Acquired Imp. Ion Engine. 00690_ Power failure, Ion Engine shutdown. 00691_ Acquired 20 matter. 00693_ K-01 Serf collects debris. 00697_ Overheating: Sensor Array damaged (-6). 00697_ K-01 Serf collects debris. 00700_ G-34 Mercenary destroyed. 00701_ Overheating: Imp. Ion Engine damaged (-16). 00701_ Overheating: Signal Interpreter damaged (-14). 00701_ Overheating: Ion Engine damaged (-19). 00701_ Overheating: Lrg. Storage Unit damaged (-46). 00701_ K-01 Serf collects debris. 00703_ Overheating: System interference. 00703_ Beam Cannon temporarily disabled. Map ----- +----------------------------------------------------+ | ??????????????????????????????????????????? | | ??????????????????????????????????????????? | | ??????????????????????????????????????????? | | ??????????????????????????????????????????? | | ??????????????????????????????????????????? | | ??????????????????????????????????????????? | | ??????????????????????????????????????????? | | ??????????????????????????????????????????? | | ??????????????????????????????????????????? | | ??????????????????????????????????????????? | | ??????????????????????????????????????????? | | ?????????????????????#????????????????????? | | ???????????????????? #????????????????????? | | ???????????????????? ?????????????????????? | | ???????????????????? ?????????????????????? | | ???????????????????? ?????????????????????? | | ???????????????????? ?????????????????????? | | ??????????????????? ?????????????????????? | | ???????????????????m#???????? ???????????? | | ??????????????????? #?????? ?????????????? | | ??????????????????? #????? #??????????????? | | ???????? ???????? #??? #???????????????? | | ???????# ??????## ### #???????????????? | | ???????# ####### ## "T??????????? | | ???????# # = +%[ +% ????????? | | ???????# # !]##@%% #???????????????? | | ???????# # !## ! ###???????????????? | | ???????# # ##=%!= #?????????????????? | | ???????# # ## =% #?????????????????? | | ???????# # ##! #?????????????????? | | ???????# # ##%[ k#?????????????????? | | ???????# # ##= #?????????????????? | | ???????# # ## #?????????????????? | | ???????# ###+### ##????????????????? | | ?#####?# #????????????????? | | # # +????????????????? | | # # # ???????????????? | | # """ + ########### #????????????????? | | # """ # #?????????? #????????????????? | | # """ # #?????????? ???????????????????? | | # ?# #??????????????????????????????? | | ######?#####??????????????????????????????? | | ??????????????????????????????????????????? | | ??????????????????????????????????????????? | | ??????????????????????????????????????????? | | ??????????????????????????????????????????? | | ??????????????????????????????????????????? | | ??????????????????????????????????????????? | | ??????????????????????????????????????????? | | ??????????????????????????????????????????? | +----------------------------------------------------+ Best States ------------- Heat Dissipation 28 Energy Generation 17 Energy Capacity 415 Matter Stores 300 Matter Capacity 300 Sight Range 16 Robot Scan Range 14 Terrain Scan Density 10 Resistance: KI 35 Resistance: TH 35 Resistance: EX 35 Resistance: EM 35 Resistance: I 35 Resistance: S 35 Resistance: P 35 Evasion (%) 55 Offensive Hacking 20 Item Schematics ----------------- None Robot Schematics ------------------ None Fabricated ------------ Nothing Alien Tech Used ----------------- None Achievements -------------- Hey, That's Mine! Challenges ------------ None Game ------ Seed SuperchargedIonicBox Manual? 0 Play Time 00:18:17 Cumulative 20.9 hours Start 2024.09.29 @ 17:01:21 End 2024.09.29 @ 17:34:45 Sessions 1 Manual Loads 0 Difficulty Explorer Special Mode None Game No. 17 Rogue 0 Adventurer 13 Explorer 4 Win Type - Total 0 Types 0/0/0/0/0/0/0/0/0 Lore% 14 Gallery% 28 Achievement% 22 Wizard Run 0 Options --------- Layout 1 ASCII 0 Keyboard 0 Movement Mouse Keybinds 0 Fullscreen 1 Font 24/Swanston Map View 25x20 Zoom Use 97% Tactical HUD 1 Map Filters NONE Filters NONE Steam 1 RUN: f349405a-88c0-4dac-8dcf-1855f729f61c